bitfinex/quotes_BTCUSD_20251117
["timestamp","ask_amount","ask_price","bid_price","bid_amount"]
[1763370900536,0.01948804,95716.0,95715.0,0.14107]
[1763370901796,0.01948804,95716.0,95715.0,0.11732]
[1763370902438,0.01948804,95716.0,95715.0,0.14107]
[1763370902845,0.02923717,95716.0,95715.0,0.14107]
[1763370903048,0.01948804,95716.0,95715.0,0.14107]
[1763370903631,0.02923715,95716.0,95715.0,0.14107]
[1763370903827,0.01948804,95716.0,95715.0,0.14107]
[1763370904376,0.01948804,95716.0,95715.0,0.11732]
[1763370904807,0.01948804,95716.0,95715.0,0.102]
[1763370905024,0.03000691,95716.0,95715.0,0.102]
[1763370905670,0.02923691,95716.0,95715.0,0.102]
[1763370907244,0.02923691,95716.0,95715.0,0.14107]
[1763370907488,0.01948804,95716.0,95715.0,0.14107]
[1763370907674,0.10324804,95716.0,95715.0,0.14107]
[1763370912717,0.08376,95716.0,95715.0,0.14107]
[1763370913860,0.08376,95716.0,95715.0,0.14007]
[1763370914614,0.08376,95716.0,95715.0,0.101]
[1763370914817,0.08376,95716.0,95715.0,0.11632]
[1763370915213,0.08376,95716.0,95715.0,0.14007]
[1763370915436,0.08376,95716.0,95715.0,0.14107]
[1763370917018,0.08376,95716.0,95715.0,0.16196536]
[1763370917393,0.08376,95716.0,95715.0,0.14107]
[1763370918413,0.08376,95716.0,95715.0,0.102]
[1763370918611,0.08376,95716.0,95715.0,0.1402]
[1763370918833,0.18637887,95725.0,95715.0,0.1402]
[1763370919016,0.08376,95716.0,95715.0,0.11741]
[1763370919432,0.08376,95716.0,95715.0,0.1402]
[1763370919635,0.08376,95716.0,95715.0,0.1392]
[1763370920003,0.08376,95716.0,95715.0,0.1402]
[1763370920501,0.323,95733.0,95715.0,0.1402]
[1763370920703,4.424e-05,95733.0,95732.0,0.02747]
[1763370920950,0.08380424,95733.0,95732.0,0.05026]
[1763370921126,0.10325605,95733.0,95732.0,0.05026]
[1763370921830,0.10325605,95733.0,95724.0,0.01206]
[1763370922042,0.01945181,95732.0,95724.0,0.01206]
[1763370922451,0.01945181,95732.0,95720.0,0.1]
[1763370922649,0.36984472,95730.0,95721.0,0.03485]
[1763370922847,0.01945181,95729.0,95721.0,0.03485]
[1763370923299,0.2283755,95729.0,95721.0,0.03485]
[1763370923515,0.2283755,95729.0,95720.0,0.1]
[1763370923516,0.00077,95722.0,95715.0,0.1]
[1763370923680,0.01945181,95721.0,95715.0,0.1]
[1763370924027,0.01945181,95720.0,95715.0,0.1]
[1763370924281,0.01945181,95719.0,95715.0,0.1]
[1763370924484,0.01945181,95718.0,95715.0,0.1]
[1763370924684,0.01945181,95717.0,95715.0,0.1]
[1763370924892,0.69291026,95730.0,95716.0,0.02279]
[1763370925051,0.02918191,95729.0,95716.0,0.0382]
[1763370925256,0.323,95727.0,95716.0,0.0382]
[1763370925454,0.01945461,95726.0,95716.0,0.0382]
[1763370925684,0.01945461,95725.0,95716.0,0.0382]
[1763370925819,0.01945461,95724.0,95716.0,0.01541]
[1763370926027,0.01945461,95723.0,95720.0,0.1]
[1763370926227,0.323,95727.0,95720.0,0.1]
[1763370926228,0.01945461,95722.0,95720.0,0.1]
[1763370926430,0.01945461,95721.0,95720.0,0.1]
[1763370927496,0.01945461,95721.0,95720.0,0.11541]
[1763370928398,0.01945461,95721.0,95720.0,0.11641]
[1763370928609,0.01945461,95721.0,95720.0,0.11741]
[1763370928819,0.02022461,95721.0,95720.0,0.001]
[1763370929035,0.55216517,95721.0,95720.0,0.001]
[1763370929440,0.55293517,95721.0,95720.0,0.002]
[1763370929868,0.55293517,95721.0,95720.0,0.001]
[1763370930093,0.35295395,95721.0,95720.0,0.002]
[1763370930309,0.02995395,95721.0,95720.0,0.002]
[1763370930512,0.02995395,95721.0,95720.0,0.001]
[1763370930737,0.02995395,95721.0,95720.0,0.002]
[1763370930955,0.35295395,95721.0,95720.0,0.002]
[1763370931163,0.56189451,95721.0,95720.0,0.001]
[1763370931371,0.20894329,95720.0,95715.0,0.1]
[1763370931572,0.22839986,95719.0,95715.0,0.1]
[1763370931778,0.01945461,95718.0,95715.0,0.1]
[1763370932225,0.01945461,95717.0,95715.0,0.1]
[1763370932456,0.01945461,95716.0,95715.0,0.101]
[1763370932875,0.01945461,95716.0,95715.0,0.102]
[1763370933094,0.01945461,95720.0,95715.0,0.101]
[1763370933349,0.01945461,95719.0,95715.0,0.101]
[1763370933509,0.01945461,95718.0,95715.0,0.101]
[1763370933712,0.22840422,95717.0,95715.0,0.101]
[1763370933921,0.01945461,95716.0,95715.0,0.101]
[1763370934137,0.01945461,95716.0,95715.0,0.1]
[1763370934533,0.01945461,95716.0,95715.0,0.102]
[1763370934752,0.01945461,95716.0,95715.0,0.101]
[1763370934963,0.01945461,95716.0,95715.0,0.1382]
[1763370935150,0.01945461,95716.0,95715.0,0.1392]
[1763370935301,0.01945461,95716.0,95715.0,0.1402]
[1763370936423,0.10321461,95716.0,95715.0,0.1402]
[1763370936758,0.13463425,95716.0,95715.0,0.1402]
[1763370937339,0.05087425,95716.0,95715.0,0.1402]
[1763370937537,0.13463425,95716.0,95715.0,0.1402]
[1763370938586,0.10321461,95716.0,95715.0,0.1402]
[1763370941995,0.08376,95716.0,95715.0,0.1402]
[1763370943232,0.10321321,95716.0,95715.0,0.1402]
[1763370950695,0.10321321,95716.0,95715.0,0.13962]
[1763370950911,0.10321321,95716.0,95715.0,0.1402]
[1763370955629,0.08376,95716.0,95715.0,0.1402]
[1763370955840,0.1032246,95716.0,95715.0,0.1402]
[1763370956232,0.08376,95716.0,95715.0,0.1402]
[1763370960014,0.08376,95716.0,95715.0,0.16109536]
[1763370960789,0.08376,95716.0,95715.0,0.1402]
[1763370962242,0.03141412,95726.0,95715.0,0.1402]
[1763370962469,0.03141412,95726.0,95725.0,0.02704]
[1763370962654,0.1346425,95726.0,95725.0,0.02704]
[1763370962815,0.1346425,95726.0,95725.0,0.05188]
[1763370967967,0.10322838,95726.0,95725.0,0.05188]
[1763370969200,0.10322838,95726.0,95724.0,0.01152]
[1763370969402,0.01946838,95725.0,95724.0,0.01152]
[1763370969602,0.10322838,95725.0,95724.0,0.01152]
[1763370969802,0.12806838,95725.0,95724.0,0.01152]
[1763370971589,0.04430838,95725.0,95724.0,0.01152]
[1763370971940,0.12806838,95725.0,95724.0,0.01152]
[1763370973797,0.12808705,95725.0,95724.0,0.01152]
[1763370974002,0.12808705,95725.0,95724.0,0.02704]
[1763370974602,0.12808705,95725.0,95724.0,0.05188]
[1763370975996,0.08376,95725.0,95724.0,0.05188]
[1763370976964,0.10324955,95725.0,95724.0,0.05188]
[1763370977573,0.08376,95725.0,95724.0,0.05188]
[1763370981286,0.08376,95725.0,95724.0,0.02704]
[1763370981816,0.08376,95725.0,95724.0,0.01152]
[1763370982653,0.08376,95725.0,95724.0,0.01252]
[1763370982787,0.08376,95725.0,95724.0,0.01152]
[1763370983192,0.10325108,95725.0,95724.0,0.01252]
[1763370983932,0.10325108,95725.0,95724.0,0.01152]
[1763370984274,0.10325108,95725.0,95724.0,0.01252]
[1763370984477,0.11299821,95725.0,95724.0,0.05293]
[1763370984678,0.10325108,95725.0,95724.0,0.05293]
[1763370985329,0.10325108,95725.0,95724.0,0.05193]
[1763370985656,0.10325108,95725.0,95724.0,0.05293]
[1763370986044,0.10325108,95725.0,95724.0,0.05193]
[1763370986249,0.10325108,95725.0,95724.0,0.05293]
[1763370987063,0.10325108,95725.0,95724.0,0.05193]
[1763370987463,0.10325108,95725.0,95724.0,0.05293]
[1763371001513,0.01949108,95725.0,95724.0,0.05293]
[1763371001754,0.10325108,95725.0,95724.0,0.05293]
[1763371003160,0.10325108,95725.0,95724.0,0.001]
[1763371003791,0.01949108,95725.0,95724.0,0.01766]
[1763371004000,0.10325108,95725.0,95724.0,0.04141]
[1763371005340,0.13466516,95725.0,95724.0,0.04141]
[1763371006863,0.10325108,95725.0,95724.0,0.04141]
[1763371007800,0.10325108,95725.0,95724.0,0.01766]
[1763371008208,0.10325108,95725.0,95724.0,0.04124]
[1763371011243,0.01949108,95725.0,95724.0,0.04124]
[1763371011451,0.10325108,95725.0,95724.0,0.04124]
[1763371011625,0.10327283,95725.0,95724.0,0.04124]
[1763371015616,0.10297969,95725.0,95724.0,0.04124]
[1763371015825,0.10028397,95725.0,95724.0,0.04124]
[1763371016038,0.08376,95725.0,95724.0,0.04124]
[1763371017345,0.08376,95725.0,95724.0,0.01766]
[1763371017960,0.08376,95725.0,95724.0,0.0621334]
[1763371018488,0.08376,95725.0,95724.0,0.04124]
[1763371018704,0.08376,95725.0,95724.0,0.0621334]
[1763371018931,0.08376,95725.0,95724.0,0.04124]
[1763371020464,0.08376,95725.0,95724.0,0.14124]
[1763371020688,0.0002,95750.0,95740.0,0.3698644]
[1763371020907,0.0002,95750.0,95749.0,0.07439573]
[1763371020908,0.00026932,95750.0,95749.0,0.07439573]
[1763371021122,0.00026932,95750.0,95749.0,0.09797573]
[1763371022451,0.00073508,95758.0,95750.0,0.2]
[1763371022750,0.00073508,95758.0,95750.0,0.22358]
[1763371022965,0.00073508,95758.0,95757.0,0.01584]
[1763371023405,0.00073508,95758.0,95757.0,0.03942]
[1763371023857,0.00073508,95758.0,95757.0,0.09302636]
[1763371024097,4.9e-06,95759.0,95758.0,0.03942]
[1763371024303,0.0002,95770.0,95765.0,0.04942]
[1763371024531,0.00026932,95770.0,95769.0,0.02739]
[1763371024749,0.00026932,95770.0,95769.0,0.05097]
[1763371025647,0.08398932,95770.0,95769.0,0.05097]
[1763371025875,0.08398932,95770.0,95769.0,0.15097]
[1763371026787,0.00403803,95798.0,95780.0,0.2]
[1763371027010,0.3698644,95790.0,95770.0,0.22358]
[1763371027231,0.3698644,95790.0,95771.0,0.07058573]
[1763371027232,0.00119988,95781.0,95771.0,0.07058573]
[1763371027493,0.3698644,95790.0,95771.0,0.07058573]
[1763371027698,0.01940274,95789.0,95780.0,0.02739]
[1763371027907,0.08372,95797.0,95788.0,0.01584]
[1763371028114,0.01940343,95796.0,95789.0,0.02739]
[1763371028316,0.01940343,95795.0,95789.0,0.02739]
[1763371028513,0.01940343,95794.0,95790.0,0.02358]
[1763371028740,0.08372,95793.0,95791.0,0.04700573]
[1763371028949,0.08385271,95793.0,95792.0,0.02358]
[1763371029065,0.08385271,95793.0,95792.0,0.03942]
[1763371030920,0.08385271,95793.0,95792.0,0.08984]
[1763371031124,0.08385271,95793.0,95792.0,5.08884]
[1763371031323,0.08385271,95793.0,95792.0,5.08984]
[1763371031544,0.08385271,95793.0,95792.0,5.18984]
[1763371031787,0.08372,95793.0,95792.0,5.51284]
[1763371032174,0.08372,95793.0,95792.0,1.98904]
[1763371032381,0.08372,95793.0,95792.0,0.86474]
[1763371032581,0.08372,95793.0,95792.0,0.14142]
[1763371032835,0.08372,95793.0,95792.0,0.13942]
[1763371033042,0.08372,95793.0,95792.0,0.14242]
[1763371033245,0.08524694,95793.0,95792.0,0.14242]
[1763371033435,0.08524694,95793.0,95792.0,0.14042]
[1763371033639,0.08524694,95793.0,95792.0,0.14142]
[1763371033961,0.10459127,95793.0,95792.0,0.14042]
[1763371034167,0.10459175,95793.0,95792.0,0.04042]
[1763371034415,0.10459175,95793.0,95792.0,0.04142]
[1763371035781,0.08372,95793.0,95792.0,0.03935]
[1763371036115,0.08372,95793.0,95792.0,0.04035]
[1763371036434,0.3700644,95820.0,95810.0,0.2]
[1763371036435,0.0002,95820.0,95810.0,0.2]
[1763371036615,0.0002,95830.0,95819.0,0.02782]
[1763371036819,0.03202314,95830.0,95829.0,0.02782]
[1763371037015,0.08432228,95830.0,95829.0,0.02782]
[1763371037219,0.08432228,95830.0,95829.0,0.05133]
[1763371037414,0.08533033,95830.0,95829.0,0.05133]
[1763371044379,0.08533033,95830.0,95829.0,0.08270322]
[1763371044525,0.08533033,95830.0,95829.0,0.13212322]
[1763371044722,0.00165033,95830.0,95829.0,0.13212322]
[1763371044913,0.08533033,95830.0,95829.0,0.13212322]
[1763371045359,0.08533033,95830.0,95829.0,0.08270322]
[1763371046017,0.08533033,95830.0,95829.0,0.08370322]
[1763371046145,0.08533033,95830.0,95829.0,0.08470322]
[1763371046364,0.08533033,95830.0,95829.0,0.08270322]
[1763371047806,0.10469811,95830.0,95829.0,0.08270322]
[1763371048417,0.10469811,95830.0,95829.0,0.08370322]
[1763371050692,0.10469811,95830.0,95829.0,0.10457372]
[1763371050889,0.08533033,95830.0,95829.0,5.15399372]
[1763371051204,0.08533033,95830.0,95829.0,5.13312322]
[1763371051743,0.08533033,95830.0,95829.0,5.23312322]
[1763371051970,0.08533033,95830.0,95829.0,1.65862322]
[1763371052177,0.08533033,95830.0,95829.0,1.39182322]
[1763371052400,0.08533033,95830.0,95829.0,0.18570322]
[1763371052620,0.08533033,95830.0,95829.0,0.05133]
[1763371052858,0.10473763,95830.0,95829.0,0.05233]
[1763371054602,0.10473763,95830.0,95829.0,0.05133]
[1763371057756,0.10473763,95830.0,95829.0,0.0722005]
[1763371059042,0.0002,95860.0,95829.0,0.0722005]
[1763371059043,0.0002,95860.0,95850.0,0.2]
[1763371059255,0.0002693,95860.0,95859.0,0.07448573]
[1763371059410,0.0839093,95860.0,95859.0,0.07448573]
[1763371059626,0.0839093,95860.0,95859.0,0.09805573]
[1763371060652,0.0839093,95860.0,95859.0,0.14747573]
[1763371061729,0.0839093,95860.0,95859.0,0.24847573]
[1763371062840,0.0839093,95860.0,95859.0,0.24947573]
[1763371063282,0.0839093,95860.0,95859.0,0.15305]
[1763371063455,0.0839093,95860.0,95859.0,0.05305]
[1763371064372,0.0839093,95860.0,95859.0,0.05205]
[1763371064542,0.0839093,95860.0,95859.0,0.05105]
[1763371064738,0.08472625,95860.0,95859.0,0.05105]
[1763371065963,0.00108625,95860.0,95859.0,4.48067]
[1763371066182,0.08472625,95860.0,95859.0,4.48067]
[1763371067158,0.08472625,95860.0,95859.0,5.20047]
[1763371067512,0.08472625,95860.0,95859.0,5.20147]
[1763371067878,0.08472625,95860.0,95859.0,5.20247]
[1763371068325,0.08472625,95860.0,95859.0,0.98137]
[1763371068540,0.0002,95870.0,95860.0,0.2]
[1763371068819,0.0002,95870.0,95869.0,0.12384573]
[1763371069102,0.20855294,95899.0,95895.0,0.01149]
[1763371069253,0.09336363,95898.0,95893.0,0.01149]
[1763371069444,0.00972363,95897.0,95893.0,0.01149]
[1763371069654,0.00972363,95896.0,95893.0,0.01149]
[1763371069856,0.20853244,95909.0,95893.0,0.01149]
[1763371069857,0.01487957,95907.0,95897.0,0.01593]
[1763371070066,0.20854067,95905.0,95897.0,0.01593]
[1763371070261,0.00972195,95904.0,95897.0,0.01593]
[1763371070579,0.00972195,95903.0,95893.0,0.01149]
[1763371070940,0.00972195,95902.0,95892.0,0.01149]
[1763371071119,0.20855738,95897.0,95892.0,0.01162259]
[1763371071413,0.20856212,95895.0,95892.0,0.01162259]
[1763371071621,0.22800595,95894.0,95892.0,0.00013259]
[1763371071794,0.01944159,95893.0,95892.0,0.00013259]
[1763371072780,0.02916133,95893.0,95892.0,0.00013259]
[1763371073651,0.35216133,95893.0,95892.0,0.00013259]
[1763371074498,0.35316133,95893.0,95892.0,0.00013259]
[1763371074917,0.35405956,95893.0,95892.0,0.00013259]
[1763371077508,0.34433982,95893.0,95892.0,0.00013259]
[1763371077710,0.35406832,95893.0,95892.0,0.00013259]
[1763371078213,0.03106876,95893.0,95892.0,0.00013259]
[1763371078557,0.02133982,95893.0,95892.0,0.00013259]
[1763371079596,0.02133982,95893.0,95892.0,0.04027259]
[1763371079820,0.10497982,95893.0,95892.0,0.04027259]
[1763371080239,0.10397982,95893.0,95892.0,0.04027259]
[1763371080471,0.08364,95893.0,95892.0,0.04027259]
[1763371081017,0.0002,95910.0,95893.0,5.0]
[1763371081220,0.002,95919.0,95892.0,0.04027259]
[1763371081221,0.002,95919.0,95910.0,0.2]
[1763371081420,0.02803808,95943.0,95909.0,0.01593]
[1763371081421,0.02803808,95949.0,95940.0,0.01593]
[1763371081620,0.05757331,95959.0,95931.0,0.01149]
[1763371081621,0.08364,95948.0,95931.0,0.01149]
[1763371081978,0.0231,95947.0,95931.0,0.01149]
[1763371082138,0.20845275,95945.0,95931.0,0.01149]
[1763371082344,0.29208768,95948.0,95932.0,0.02421]
[1763371082553,0.0231,95947.0,95931.0,0.01149]
[1763371082940,0.08408215,95948.0,95932.0,0.02421]
[1763371083143,0.0231,95947.0,95931.0,0.01149]
[1763371083389,0.0231,95947.0,95920.0,0.20559]
[1763371083390,0.323,95940.0,95920.0,0.20559]
[1763371083594,0.20846796,95938.0,95920.0,0.00559]
[1763371083794,0.03347,95939.0,95920.0,0.00559]
[1763371083795,0.323,95931.0,95920.0,0.00559]
[1763371084002,0.323,95929.0,95920.0,0.00559]
[1763371084340,0.323,95930.0,95920.0,0.00559]
[1763371085483,0.20850708,95920.0,95915.0,0.1]
[1763371085650,0.02468,95921.0,95904.0,0.01149]
[1763371085901,0.00949,95921.0,95904.0,0.01149]
[1763371086073,0.53581532,95920.0,95904.0,0.01149]
[1763371086279,0.20851282,95918.0,95904.0,0.01149]
[1763371086479,0.20851247,95918.0,95907.0,0.01149]
[1763371086676,0.20851487,95917.0,95909.0,0.1]
[1763371087093,0.53581532,95920.0,95909.0,0.1]
[1763371087307,0.23344882,95910.0,95909.0,0.1]
[1763371087595,0.20853535,95907.0,95893.0,0.01149]
[1763371087954,0.52665532,95919.0,95893.0,0.01149]
[1763371087955,0.00916,95927.0,95906.0,0.02742]
[1763371088159,0.00916,95927.0,95918.0,0.01149]
[1763371088160,0.0836,95926.0,95918.0,0.01149]
[1763371088357,0.01519,95919.0,95906.0,0.01149]
[1763371088893,0.22370102,95919.0,95906.0,0.01149]
[1763371089094,0.01519,95919.0,95906.0,0.01149]
[1763371089266,0.01519,95919.0,95890.0,0.2]
[1763371089267,0.00973,95907.0,95894.0,0.1]
[1763371089723,0.218094,95927.0,95906.0,0.02742]
[1763371089908,0.218094,95927.0,95912.0,0.01593]
[1763371089909,0.04700573,95924.0,95912.0,0.01593]
[1763371090226,0.04700573,95924.0,95906.0,0.01149]
[1763371090227,0.00044188,95927.0,95925.0,0.02742]
[1763371090439,0.00044188,95927.0,95926.0,0.01593]
[1763371090724,0.0836,95926.0,95925.0,0.01149]
[1763371091061,0.00044188,95927.0,95925.0,0.02742]
[1763371091288,0.00044188,95927.0,95926.0,0.01593]
[1763371091495,0.08404188,95927.0,95926.0,0.04014]
[1763371092569,0.08404188,95927.0,95926.0,0.14014]
[1763371092992,0.08496682,95927.0,95926.0,0.14114]
[1763371093409,0.08496682,95927.0,95926.0,0.04114]
[1763371093642,0.08496682,95927.0,95926.0,0.01693]
[1763371093809,0.08496682,95927.0,95926.0,0.04214]
[1763371094232,0.08496682,95927.0,95926.0,0.04114]
[1763371094726,0.08496682,95927.0,95926.0,0.04014]
[1763371095106,0.08496682,95927.0,95926.0,0.04114]
[1763371095484,0.08496682,95927.0,95926.0,0.04214]
[1763371095918,0.00136682,95927.0,95926.0,5.15941513]
[1763371096144,0.52665532,95960.0,95930.0,0.2]
[1763371096319,0.10304752,95958.0,95930.0,0.2]
[1763371096548,0.01944752,95957.0,95931.0,0.02487]
[1763371096751,0.01944752,95956.0,95931.0,0.02487]
[1763371096868,0.01944752,95955.0,95931.0,0.02487]
[1763371097072,0.01944752,95954.0,95931.0,0.02487]
[1763371097279,0.01944752,95953.0,95935.0,0.1]
[1763371097478,0.10304752,95952.0,95949.0,0.04700573]
[1763371097690,0.0836,95952.0,95951.0,0.01625]
[1763371098136,0.0836,95952.0,95951.0,0.03941]
[1763371099087,0.0836,95952.0,95951.0,0.01625]
[1763371099242,0.103034,95952.0,95942.0,0.0307]
[1763371099405,0.103034,95952.0,95942.0,0.00754]
[1763371099406,0.01943522,95951.0,95942.0,0.00754]
[1763371099612,0.0836,95952.0,95942.0,0.00754]
[1763371099832,0.01943522,95951.0,95942.0,0.00754]
[1763371100045,0.00213256,95959.0,95951.0,0.01625]
[1763371100291,0.10299395,95958.0,95951.0,0.01625]
[1763371100476,0.01943395,95957.0,95951.0,0.01625]
[1763371100639,0.08356,95958.0,95951.0,0.02316]
[1763371100640,0.01943395,95956.0,95951.0,0.02316]
[1763371100840,0.08356,95958.0,95957.0,0.02753]
[1763371101263,0.08356,95958.0,95957.0,0.05069]
[1763371101869,0.09925,95958.0,95942.0,0.00754]
[1763371102186,0.04362649,95957.0,95945.0,0.1]
[1763371102400,0.73509504,95952.0,95945.0,0.1]
[1763371102603,0.01569,95946.0,95940.0,0.1]
[1763371102804,0.20845549,95944.0,95940.0,0.1]
[1763371103009,0.02523,95941.0,95928.0,0.01128]
[1763371103229,0.01942649,95940.0,95928.0,0.01128]
[1763371103422,0.02523,95941.0,95928.0,0.01128]
[1763371103423,0.01942649,95939.0,95928.0,0.01128]
[1763371103653,0.52665532,95950.0,95928.0,0.01128]
[1763371103654,0.00954,95948.0,95929.0,0.04400875]
[1763371103860,0.00954,95948.0,95938.0,0.01625]
[1763371104509,0.53707632,95960.0,95930.0,0.02316]
[1763371104510,0.52685532,95970.0,95947.0,0.01625]
[1763371104650,0.08356,95947.0,95939.0,0.02316]
[1763371104858,0.001,95944.0,95939.0,0.02316]
[1763371105256,0.0194433,95943.0,95939.0,0.02316]
[1763371105459,0.08356,95947.0,95939.0,0.02316]
[1763371105762,0.01944333,95946.0,95939.0,0.02316]
[1763371106013,0.01944333,95946.0,95934.0,0.1]
[1763371106014,0.01944333,95945.0,95934.0,0.1]
[1763371106219,0.01944333,95944.0,95934.0,0.1]
[1763371106452,0.01944333,95943.0,95934.0,0.1]
[1763371106657,0.01944333,95942.0,95935.0,0.02316]
[1763371106857,0.08356,95947.0,95941.0,0.01625]
[1763371107057,0.01945281,95946.0,95941.0,0.01625]
[1763371107259,0.01945281,95945.0,95941.0,0.01625]
[1763371107409,0.01945281,95944.0,95941.0,0.01625]
[1763371107627,0.01945281,95943.0,95941.0,0.01625]
[1763371107828,0.01945281,95942.0,95941.0,0.01625]
[1763371108027,0.01945281,95942.0,95934.0,0.1]
[1763371108193,0.01945281,95941.0,95927.0,0.02316]
[1763371108398,0.08356,95947.0,95920.0,0.2]
[1763371108399,0.33324684,95940.0,95920.0,0.2]
[1763371108613,0.01945281,95939.0,95920.0,0.2]
[1763371108819,0.01945281,95939.0,95925.0,0.03465]
[1763371109054,0.01945281,95939.0,95938.0,0.01625]
[1763371109467,0.01945281,95946.0,95938.0,0.01625]
[1763371109641,0.08356,95947.0,95938.0,0.01625]
[1763371109642,0.01945281,95945.0,95938.0,0.01625]
[1763371109854,0.01945281,95944.0,95938.0,0.01625]
[1763371110085,0.01945281,95943.0,95938.0,0.01625]
[1763371110244,0.01945281,95942.0,95938.0,0.01625]
[1763371110462,0.01945281,95941.0,95938.0,0.01625]
[1763371110671,0.01945281,95940.0,95938.0,0.01625]
[1763371110870,0.01945281,95939.0,95938.0,0.01625]
[1763371112571,0.01945281,95939.0,95938.0,0.03941]
[1763371112973,0.01945281,95946.0,95938.0,0.03941]
[1763371113181,0.01945281,95945.0,95938.0,0.03941]
[1763371113354,0.01945281,95944.0,95938.0,0.03941]
[1763371113706,0.10301281,95943.0,95939.0,0.02316]
[1763371113910,0.01945281,95942.0,95939.0,0.02316]
[1763371114043,0.01945281,95941.0,95939.0,0.02316]
[1763371114250,0.01945281,95940.0,95934.0,0.1]
[1763371114449,0.08356,95943.0,95934.0,0.1]
[1763371114450,0.01945281,95939.0,95934.0,0.1]
[1763371114655,0.01945281,95938.0,95934.0,0.1]
[1763371114852,0.01945281,95937.0,95934.0,0.1]
[1763371115052,0.01945281,95936.0,95934.0,0.1]
[1763371115276,0.01945281,95935.0,95934.0,0.1]
[1763371115522,0.01945281,95935.0,95925.0,0.01149]
[1763371115523,0.01945281,95935.0,95927.0,0.1]
[1763371115717,0.01945281,95934.0,95927.0,0.1]
[1763371115924,0.01945281,95933.0,95927.0,0.1]
[1763371116076,0.01945281,95932.0,95927.0,0.1]
[1763371116285,0.01945281,95931.0,95927.0,0.1]
[1763371116478,0.01945281,95930.0,95927.0,0.1]
[1763371116699,0.08356,95943.0,95927.0,0.1]
[1763371116700,0.01945281,95929.0,95927.0,0.1]
[1763371116925,0.01945281,95929.0,95928.0,0.02753]
[1763371117135,0.01945281,95942.0,95928.0,0.02753]
[1763371117339,0.01952215,95941.0,95929.0,0.02084875]
[1763371117566,0.01952215,95940.0,95930.0,0.02084853]
[1763371117773,0.01952215,95939.0,95931.0,0.02084831]
[1763371117975,0.01952215,95938.0,95931.0,0.02084831]
[1763371118178,0.01952215,95937.0,95931.0,0.02084831]
[1763371118388,0.01952215,95936.0,95932.0,0.0440081]
[1763371118604,0.01952215,95935.0,95932.0,0.0440081]
[1763371118817,0.10308215,95934.0,95933.0,0.02316]
[1763371119238,0.10308215,95934.0,95933.0,0.03941]
[1763371119855,0.10308215,95934.0,95933.0,0.13941]
[1763371120908,0.10308215,95934.0,95933.0,0.14041]
[1763371121116,0.10308215,95934.0,95933.0,0.14141]
[1763371121366,0.00013251,95941.0,95939.0,5.0]
[1763371121570,0.00013251,95941.0,95940.0,0.35886757]
[1763371121767,0.00013251,95941.0,95940.0,0.34046757]
[1763371121768,0.08369251,95941.0,95940.0,0.34046757]
[1763371122174,0.08369251,95941.0,95940.0,0.22716757]
[1763371122415,0.08369251,95941.0,95940.0,0.17996757]
[1763371122615,0.08369251,95941.0,95940.0,0.06756757]
[1763371122829,0.08369251,95941.0,95940.0,0.16756757]
[1763371123154,0.08369251,95941.0,95940.0,0.52576757]
[1763371123310,0.08369251,95941.0,95940.0,0.51245844]
[1763371123518,0.08369251,95941.0,95940.0,0.16755844]
[1763371123771,0.0005132,95941.0,95940.0,0.18883]
[1763371123973,0.0840732,95941.0,95940.0,0.19083]
[1763371124412,0.0840732,95941.0,95940.0,0.18983]
[1763371124613,0.0840732,95941.0,95940.0,0.19083]
[1763371124856,0.0005132,95941.0,95940.0,5.18983]
[1763371125060,0.0840732,95941.0,95940.0,5.19083]
[1763371125639,0.0840732,95941.0,95940.0,4.33303]
[1763371125838,0.0840732,95941.0,95940.0,4.33203]
[1763371126041,0.0840732,95941.0,95940.0,5.01523]
[1763371126291,0.002,95959.0,95950.0,0.2]
[1763371126438,0.002,95959.0,95958.0,2.17268573]
[1763371126647,0.08556,95959.0,95958.0,0.66728573]
[1763371126848,0.08556,95959.0,95958.0,0.14317573]
[1763371127052,0.08556,95959.0,95958.0,1.09017573]
[1763371127253,0.08556,95959.0,95958.0,1.11827734]
[1763371127440,0.08556,95959.0,95958.0,1.09017573]
[1763371127885,0.08556,95959.0,95958.0,1.09117573]
[1763371128078,0.08556,95959.0,95958.0,5.14417573]
[1763371128282,0.08556,95959.0,95958.0,5.17226125]
[1763371128480,0.08556,95959.0,95958.0,5.17426125]
[1763371128775,0.08556,95959.0,95958.0,5.27426125]
[1763371128981,0.325,95999.0,95975.0,0.04942]
[1763371129201,0.08377246,95981.0,95980.0,0.02738]
[1763371129413,0.16733246,95981.0,95980.0,0.02738]
[1763371129614,0.16733246,95981.0,95980.0,0.05017]
[1763371130263,0.16733246,95981.0,95980.0,0.15117]
[1763371131227,0.16733246,95981.0,95980.0,0.15217]
[1763371133189,0.16733246,95981.0,95980.0,0.05217]
[1763371134061,0.16841982,95981.0,95980.0,0.20059]
[1763371134258,0.16841982,95981.0,95980.0,0.20159]
[1763371134664,0.16841982,95981.0,95980.0,0.20059]
[1763371134865,0.16841982,95981.0,95980.0,0.20159]
[1763371135101,0.16841982,95981.0,95980.0,0.20059]
[1763371135556,0.16841982,95981.0,95980.0,0.20159]
[1763371135718,0.16841982,95981.0,95980.0,0.15217]
[1763371136126,0.19573882,95981.0,95980.0,0.15217]
[1763371136526,0.19573882,95981.0,95980.0,0.15117]
[1763371136730,0.19573882,95981.0,95980.0,0.15017]
[1763371136924,0.19573882,95981.0,95980.0,0.15217]
[1763371137124,0.19573882,95981.0,95980.0,0.102]
[1763371137352,0.19573882,95981.0,95980.0,0.14089]
[1763371138944,0.19569882,95981.0,95980.0,0.14089]
[1763371140367,0.19569882,95981.0,95980.0,0.102]
[1763371140981,0.19569882,95981.0,95980.0,0.1181]
[1763371141187,0.19569882,95981.0,95980.0,0.102]
[1763371141598,0.21176882,95981.0,95980.0,0.002]
[1763371141808,0.46277579,95981.0,95980.0,0.002]
[1763371142009,0.78577579,95981.0,95980.0,0.002]
[1763371142224,0.78577579,95981.0,95947.0,0.01146]
[1763371142225,0.04341874,95977.0,95947.0,0.01146]